Cogmind - Beta 13 @@@ ROGUE MODE // 2024.04.17 @ 18:01:26 Player: JTMusky Result: Destroyed by S-10 Pest with Light Assault Rifle Performance ------------- Evolutions (1) 500 Regions Visited (3) 600 Robots Destroyed (31) 155 Value Destroyed (551) 551 Prototype IDs (5) 100 Alien Tech Used (0) 0 Bonus (0) 0 TOTAL SCORE: 1906 Bonus ------- None Cogmind --------- Core Integrity 0/400 Matter 211/300 Energy 113/125 System Corruption 0% Temperature Cool (0) Movement Hovering (60) Location -9/Mines Parts ------- > --- POWER (1) -------- Light Ion Engine > --- PROPULSION (2) --- Hover Unit > --- UTILITY (4) ------ Structural Scanner Signal Interpreter Improved Terrain Scanner > --- WEAPON (2) ------- (None) > --- INVENTORY (5) ---- Flight Unit Decoy Drone Bay (15/16) Light Cannon Light Cannon Peak State ------------ > --- POWER ------------ Light Ion Engine > --- PROPULSION ------- Flight Unit Flight Unit > --- UTILITY ---------- Structural Scanner Signal Interpreter Decoy Drone Bay > --- WEAPON ----------- Light Cannon > --- INVENTORY -------- Light Ion Engine Heat Sink Medium Storage Unit Improved Terrain Scanner Light Cannon [Rating: 20] Favorites ----------- Power Light Ion Engine Engine Light Ion Engine Propulsion Aluminum Leg Treads Light Treads Leg Aluminum Leg Wheel Wheel Hover Unit Improved Hover Unit Flight Unit Flight Unit Utility Signal Interpreter Device Sensor Array Storage Small Storage Unit Processor Signal Interpreter Weapon Light Assault Rifle Energy Gun Medium Laser Ballistic Gun Light Assault Rifle Ballistic Cannon Light Cannon Launcher Grenade Launcher Special Weapon Mining Laser Impact Weapon Hammer Special Melee Weapon Datajack Build | -11 -10 -9 -9 ------- Run | Yrd Mat Mat Min Slots Evolved 2 | . . 2 . Power . | . . . . Propulsion . | . . . . Utility 2 | . . 2 . Weapon . | . . . . Parts Attached 58 | 10 23 19 6 Power 7 | 1 1 5 . Engine 7 | 1 1 5 . Core . | . . . . Reactor . | . . . . Propulsion 15 | 3 4 4 4 Treads 2 | . 2 . . Leg 3 | 3 . . . Wheel 2 | . 2 . . Hover 3 | . . 1 2 Flight 5 | . . 3 2 Utility 18 | 3 8 5 2 Device 15 | 2 7 4 2 Storage 1 | 1 . . . Processor 2 | . 1 1 . Hackware . | . . . . Protection . | . . . . Artifact . | . . . . Weapon 18 | 3 10 5 . Energy Gun 2 | . 2 . . Energy Cannon . | . . . . Ballistic Gun 8 | 2 3 3 . Ballistic Cannon 1 | . . 1 . Launcher 2 | . 2 . . Special Weapon 3 | 1 2 . . Impact Weapon 1 | . 1 . . Slashing Weapon . | . . . . Piercing Weapon . | . . . . Special Melee Weapon 1 | . . 1 . Unidentified Prototypes 2 | . . 1 1 Parts Lost 19 | . 6 12 1 Power 4 | . 1 3 . Propulsion 8 | . 3 4 1 Utility 2 | . . 2 . Weapon 5 | . 2 3 . Highest Loss Streak 6 | . 4 6 1 To Critical Strikes . | . . . . Average Slot Usage (%) 91 | . 97 80 74 Engine 12 | . 13 9 11 Treads 3 | . 4 2 . Leg 6 | . 9 . . Wheel 10 | . 12 6 . Flight 2 | . . 6 19 Device 15 | . 14 16 20 Storage 4 | . 5 . . Processor 10 | . 7 19 11 Energy Gun 3 | . 3 3 . Ballistic Gun 10 | . 11 8 . Launcher 2 | . 3 . . Impact Weapon 5 | . 7 . . Special Melee Weapon 1 | . . 4 . Naked Turns . | . . . . Heaviest Build 14 | 12 14 10 8 Greatest Support 20 | 20 20 20 8 Greatest Overweight (x) 4 | 3 4 2 1 Average Overweight (x) . | . . . . Largest Inventory Capacity 8 | 8 8 5 5 Average Capacity 6 | 7 6 5 5 Most Carried 8 | 8 8 5 5 Average Carried 5 | 6 6 4 4 Final Capacity 8 | 8 5 5 5 Final Carried 8 | 8 5 5 5 Class Distribution -------------------- 89% | Mutant 10% | Scavenger-Mutant Dominant Class ---------------- Mutant | -10/Materials Mutant | -9/Materials Scavenger-Mutant | -9/Mines Resources | -11 -10 -9 -9 ----------- Run | Yrd Mat Mat Min Matter Collected 902 | 352 303 200 47 Remotely . | . . . . Salvage Created 738 | 134 404 200 . Parts 52 | 16 16 20 . Haulers Intercepted 2 | . 1 1 . Recyclers Shooed . | . . . . Parts Field Recycled . | . . . . Retrieved Matter . | . . . . Parts Self-Destructed . | . . . . Prevented . | . . . . Kills | -11 -10 -9 -9 ------- Run | Yrd Mat Mat Min Combat Hostiles Destroyed 19 | . 10 9 . Melee 5 | . 5 . . Guns 10 | . 1 9 . AOE 4 | . 4 . . Classes Destroyed 7 | 2 5 . . Tunneler 5 | 4 1 . . Hauler 2 | . 1 1 . Recycler 1 | 1 . . . Operator 2 | . 2 . . Watcher 2 | . 2 . . Swarmer 10 | . 3 7 . Grunt 9 | . 7 2 . Best Kill Streak 5 | 2 5 5 . Combat Bots Only 5 | . 3 5 . Max Kills in Single Turn 2 | 1 2 1 . Gunslinging . | . . . . Exploded 1 | . 1 . . Melee 1 | . 1 . . Uniques/NPCs Destroyed . | . . . . Combat | -11 -10 -9 -9 -------- Run | Yrd Mat Mat Min Hostile Shots Fired 266 | . 95 165 6 Missed 86 | . 26 58 2 Damage Taken 2041 | . 824 1181 36 Core 618 | . 212 386 20 Absorbed by Shields . | . . . . Core Remaining (%) 57 | 100 15 . . Volleys Fired 108 | 39 44 25 . Largest 2 | 2 2 2 . Hottest 100 | 100 100 70 . Shots Fired 144 | 52 53 39 . Gun 100 | 26 35 39 . Cannon . | . . . . Launcher 14 | . 14 . . Special 30 | 26 4 . . Kinetic 85 | 26 34 25 . Thermal 45 | 26 5 14 . Explosive 14 | . 14 . . Electromagnetic . | . . . . Robot Hit Streak 10 | 8 8 10 . Robot Miss Streak 3 | 3 3 3 . Penetration Max . | . . . . Secondary Targets 2 | . . 2 . Max Gunslinging Chain 1 | . . 1 . Shots Hit Robots 86 | 14 40 32 . Core Hits 43 | 6 23 14 . Critical Kills 1 | . 1 . . Critical Parts Destroyed 1 | . 1 . . Critical Strikes 2 | . 2 . . Smash 2 | . 2 . . Melee Attacks 39 | . 36 3 . Impact 36 | . 36 . . Slashing . | . . . . Piercing . | . . . . Sneak Attacks 2 | . 2 . . Combat Hostiles . | . . . . Follow-up Attacks . | . . . . Damage Inflicted 1811 | 170 1222 419 . Guns 706 | 166 127 413 . Cannons . | . . . . Explosions 493 | . 493 . . Melee 602 | . 602 . . Ramming 10 | 4 . 6 . Kinetic 596 | 166 127 303 . Thermal 110 | . . 110 . Explosive 493 | . 493 . . Electromagnetic . | . . . . Impact 602 | . 602 . . Slashing . | . . . . Piercing . | . . . . Highest Corruption . | . . . . Average Corruption . | . . . . Corruption Purged . | . . . . Corruption Blocked . | . . . . Overload Shots . | . . . . Overflow Damage 87 | . 87 . . Projectiles . | . . . . Explosions . | . . . . Melee 87 | . 87 . . Knockbacks 1 | . 1 . . Impact 1 | . 1 . . Kinetic . | . . . . Secondary . | . . . . Self-Inflicted Damage 3 | . . 3 . Shots . | . . . . Rammed 3 | . . 3 . Targets Rammed 4 | 1 . 3 . Kicked 1 | 1 . . . Crushed . | . . . . Highest Temperature 368 | 292 85 368 . Average Temperature 102 | 123 41 109 . Received Heat Transfer 801 | . 450 351 . Siege Activations . | . . . . Robots Corrupted . | . . . . Combat Hostiles . | . . . . Parts Fried 4 | . 4 . . Impact Corruptions 4 | . 4 . . Robots Melted . | . . . . Combat Hostiles . | . . . . Parts Melted . | . . . . Heat Transferred 333 | . . 333 . Parts Sabotaged . | . . . . Parts Stolen . | . . . . Parts Stripped . | . . . . Power Chain Reactions . | . . . . Alert | -11 -10 -9 -9 ------- Run | Yrd Mat Mat Min Peak Influence 242 | 25 210 242 25 Initial 25 | . . . 25 Average 73 | 10 83 103 24 Maximum Alert Level 1 | . 1 1 . Low Security (%) 92 | 100 94 80 100 Level 1 7 | . 5 19 . Level 2 . | . . . . Level 3 . | . . . . Level 4 . | . . . . Level 5 . | . . . . High Security . | . . . . Max Security . | . . . . Squads Dispatched 6 | . 4 2 . Investigation 3 | . 2 1 . Extermination . | . . . . Reinforcement 3 | . 2 1 . Assault . | . . . . Garrison . | . . . . Intercept . | . . . . Searches Triggered . | . . . . Construction Impeded . | . . . . Haulers Reinforced . | . . . . Active Scanning Responses . | . . . . Cargo Convoy Interrupts . | . . . . Stealth | -11 -10 -9 -9 --------- Run | Yrd Mat Mat Min Distress Signals 2 | . 2 . . Communications Jammed . | . . . . Distress Signals . | . . . . Times Spotted 53 | . 24 26 3 Peak Tracking Total 13 | . 4 13 3 Tactical Retreats 7 | . 4 3 . Traps | -11 -10 -9 -9 ------- Run | Yrd Mat Mat Min Traps Triggered 1 | . 1 . . Indirectly . | . . . . Trap Hack Attempts . | . . . . Triggered . | . . . . Disarmed . | . . . . Reprogrammed . | . . . . Reused . | . . . . Traps Extracted . | . . . . Installed . | . . . . Triggered . | . . . . Machines | -11 -10 -9 -9 ---------- Run | Yrd Mat Mat Min Machines Disabled 1 | . 1 . . Max in Single Turn 1 | . 1 . . Machines Repaired . | . . . . Machines Dismantled . | . . . . Machines Sabotaged . | . . . . Overloaded Fab Kills . | . . . . Hacking | -11 -10 -9 -9 --------- Run | Yrd Mat Mat Min Machines Accessed 9 | . 6 2 1 Terminals 6 | . 5 1 . Fabricators . | . . . . Repair Stations . | . . . . Recycling Units 2 | . 1 1 . Scanalyzers . | . . . . Garrison Access . | . . . . Total Hacks 33 | . 25 7 1 Successful 15 | . 10 4 1 Failed 18 | . 15 3 . Catastrophic 3 | . 3 . . Database Lockouts . | . . . . Manual 18 | . 15 3 . Terminals 28 | . 24 4 . Fabricators . | . . . . Repair Stations . | . . . . Recycling Units 4 | . 1 3 . Scanalyzers . | . . . . Garrison Access . | . . . . Terminal Hacks 12 | . 9 2 1 Record 2 | . . 2 . Prototype ID Bank 2 | . 2 . . Open Door 1 | . . . 1 Locate Traps 3 | . 3 . . Maintenance Status 1 | . 1 . . Recall Investigation 1 | . 1 . . Zone Layout 2 | . 2 . . Fabricator Hacks . | . . . . Repair Station Hacks . | . . . . Recycling Unit Hacks 3 | . 1 2 . Report Inventory 2 | . 1 1 . Retrieve Components 1 | . . 1 . Scanalyzer . | . . . . Garrison Access Hacks . | . . . . Unauthorized Hacks . | . . . . Terminals . | . . . . Fabricators . | . . . . Repair Stations . | . . . . Recycling Units . | . . . . Scanalyzers . | . . . . Garrison Access . | . . . . Data Cores Recovered . | . . . . Used . | . . . . Hacking Detections 8 | . 6 2 . Full Trace Events 4 | . 3 1 . Feedback Events . | . . . . Feedback Blocked . | . . . . Robot Schematics Acquired . | . . . . Robots Built . | . . . . Authchips . | . . . . Time . | . . . . Total Robot Build Rating . | . . . . Part Schematics Acquired . | . . . . Parts Built . | . . . . Authchips . | . . . . Time . | . . . . Total Part Build Rating . | . . . . Parts Repaired . | . . . . Time . | . . . . Parts Recycled . | . . . . Recycled Matter . | . . . . Retrieved Matter . | . . . . Retrieved Components 2 | . . 2 . Parts Scanalyzed . | . . . . Part Schematics Acquired . | . . . . Parts Damaged . | . . . . Bothacking | -11 -10 -9 -9 ------------ Run | Yrd Mat Mat Min Used RIF Installer . | . . . . Robots Hacked 1 | . . 1 . Non-combat . | . . . . Combat 1 | . . 1 . Robot Hacks Applied 1 | . . 1 . parse_system 1 | . . 1 . Relay Couplers Released . | . . . . Fabnet Peak Effective % . | . . . . Robots Rewired . | . . . . Allies Hacked . | . . . . Hacks Repelled . | . . . . Allies | -11 -10 -9 -9 -------- Run | Yrd Mat Mat Min Total Allies . | . . . . Largest Group . | . . . . Highest-Rated Group . | . . . . Highest-Rated Ally . | . . . . Total Orders . | . . . . Ally Attacks . | . . . . Total Damage . | . . . . Kills . | . . . . Allies Corrupted . | . . . . Allies Melted . | . . . . Intel | -11 -10 -9 -9 ------- Run | Yrd Mat Mat Min Robot Analysis Total . | . . . . Derelict Logs Recovered 2 | . . . 2 Drone Launches 1 | . . . 1 Drone Recoveries . | . . . . Exploration | -11 -10 -9 -9 ------------- Run | Yrd Mat Mat Min Turns Passed 2883 | 513 1615 671 84 Spaces Moved 2273 | 249 1251 592 181 Core 151 | 36 55 60 . Treads 43 | . . 43 . Legs 425 | 213 212 . . Wheels 1279 | . 984 295 . Hover 106 | . . 99 7 Flight 269 | . . 95 174 Fastest Speed 37 | 50 80 37 37 Average Speed 90 | 117 94 86 38 Slowest Speed 250 | 200 250 160 120 Overloaded Moves . | . . . . Propulsion Burnouts . | . . . . Robots Hopped 2 | . . 2 . Cave-ins Triggered . | . . . . Exploration Rate (%) 43 | 8 87 29 49 Regions Visited 3 Branch Regions 1 Pre-discovered Areas . | . . . . Known Exits Taken 2 | . 1 1 . Unknown Exits Taken 1 | 1 . . . Scrap Searched 1 | . . . 1 Spaces Dug 22 | 18 4 . . Terrain Destroyed 99 | 19 80 . . Melee . | . . . . Projectile 23 | 19 4 . . AOE 76 | . 76 . . Terrain Rammed . | . . . . Walls Destroyed . | . . . . Machines Disabled . | . . . . Actions | -11 -10 -9 -9 --------- Run | Yrd Mat Mat Min Total 2835 | 367 1569 704 195 Wait 298 | 53 195 50 . Move 2266 | 248 1250 587 181 Hop 2 | . . 2 . Pick Up 31 | 12 10 7 2 Fast Attach 20 | 5 4 10 1 Attach 19 | 5 6 7 1 Detach 6 | 2 . 2 2 Swap 19 | . 13 2 4 Drop 23 | 2 11 6 4 Fire 108 | 39 44 25 . Melee 39 | . 36 3 . Ram 3 | . . 3 . Kick 1 | 1 . . . Crush . | . . . . Escape Stasis . | . . . . Rewire . | . . . . Trap . | . . . . Miscellaneous . | . . . . Route ------- -11/Scrapyard -10/Materials (discovered 4 exits: *Mat x2 / *Min x2) -9/Materials (discovered 2 exits: *Min / [*Sto]) -9/Mines (discovered 1 exit: *Mat) History --------- Turn | Location | Event 12 | -11/Scrapyard | Discovered new exit (range 16) 514 | -11/Scrapyard | Entered Materials 545 | -10/Materials | Build established: Mutant 555 | -10/Materials | Discovered new exit (range 16) 693 | -10/Materials | Discovered new exit (range 4) 981 | -10/Materials | Discovered new exit (range 8) 1086 | -10/Materials | Lost 4 parts (1p2n1w) 1101 | -10/Materials | Discovered new exit (range 16) 1495 | -10/Materials | Core integrity fell below 50% 1519 | -10/Materials | Core integrity fell below 20% 1640 | -10/Materials | Identified exit to Materials 1656 | -10/Materials | Identified exit to Mines 2129 | -10/Materials | Entered another Materials area 2129 | -9/Materials | Evolved 2 slots: Utility x2 2643 | -9/Materials | Core integrity fell below 50% 2679 | -9/Materials | Lost 6 parts (1p1n1u3w) 2726 | -9/Materials | Core integrity fell below 20% 2796 | -9/Materials | Discovered new exit (range 11) 2796 | -9/Materials | Discovered new exit (range 7) 2799 | -9/Materials | Identified exit to Mines 2800 | -9/Materials | Entered Mines 2803 | -9/Mines | Discovered new exit (range 14) 2808 | -9/Mines | Identified exit to Materials 2811 | -9/Mines | Found the Drone Emporium 2813 | -9/Mines | Found Prototype Device 2813 | -9/Mines | Identified Decoy Drone Bay 2884 | -9/Mines | Destroyed by S-10 Pest with Light Assault Rifle Last Messages --------------- 02814_ Dropped Heat Sink. 02815_ Decoy Drone released from Decoy Drone Bay. 02815_ Dropped Med. Storage Unit. 02815_ >> Lost connection to Decoy Drone. 02817_ Acquired Med. Storage Unit. 02857_ Searching scrap... 02857_ Found 22 Matter. 02857_ Found Hover Unit. 02857_ Found Huge Storage Unit. 02857_ Found Shotgun. 02857_ Found 25 Matter. 02857_ Acquired 22 matter. 02858_ Dropped Med. Storage Unit. 02859_ Acquired Hover Unit. 02861_ Acquired 25 matter. 02867_ Acquired derelict log, extracted data. Data stored: Factory entrances (x1). 02877_ Flight Unit destroyed. 02880_ Dropped Lgt. Ion Engine. Map ----- +----------------------------------------------------+ | | | | | | | | | | | | | | | | | ???????????????????###########??????????######???? | | ??????????????????#############??################# | | ?????????????????#### ############## ###### | | ?????????????####### ###### ## | | ?????????????###### """ ## #### | | ?????????????## """ ##### | | ?????????????## ?## """ ##### | | ?????????????????## ##### | | ?????????????## #### ## ##### ! | | ?????????????## #### #### ###### [! | | ?????????????## ##### ####?### # | | ?????????????## #### ####### ###??#### # ### | | ?????????????## ##### ####### ##????###### ### | | ??????????????????##### ### * ##?????##### | | ???????????????????#### ###s### ##??#?????## | | ?????????????????????## ###s### ?????###### | | ????????????????????### ## ##### ###?????###### | | ????????????????????### @ #### ###??????????? | | ????????????????????## ###?? ##???????????? | | ????????????????????## ####### ##????????????? | | ????????????????????### ######## ###???????????? | | ????????????????????### #####??## ####??????????? | | ?????????????????????## ####??## ##???????????? | | ?????????????????????## ##?##### ##???????????? | | ?????????????????????## ####### ###???????????? | | ?????????????????????## ##### ###????????????? | | ?????????????????????## #### ###?????????????? | | ??????????????????## ## ### ###??????#???????? | | ??????????????????## ## ## ###???????????????? | | ??????????????????## #####?????????????? | | ??????????????????#####$## ######????????????? | | ??????????????????##### ## ####???????##### | | ?????????????????????## ### ####?????###### | | ?????????????????????## ###### ####????### # | | ????????????????????? ####### ####???## | | ?????????????????????#####??#### ######## | | ?????????????????????#####???### ####### | | ??????????????????????????????### ### | | ??????????????????????????????#### ## | | ???????????????????????????????#### ##### ## | | ????????????????????????????????### ##### ### | | ?????????????????????????????????## ##?## #### | +----------------------------------------------------+ Best States ------------- Heat Dissipation 38 Energy Generation 14 Energy Capacity 280 Matter Stores 300 Matter Capacity 300 Sight Range 16 Robot Scan Range 14 Terrain Scan Range 16 Terrain Scan Density 10 Evasion (%) 62 Targeting Accuracy 5 Recoil Reduction 1 Item Schematics ----------------- None Robot Schematics ------------------ None Fabricated ------------ Nothing Alien Tech Used ----------------- None Achievements -------------- Universal Adapter Challenges ------------ None Game ------ Seed ThermalNeutrinoSpear Manual? 0 Play Time 01:44:51 Cumulative 12.9 hours Start 2024.04.14 @ 14:32:47 End 2024.04.17 @ 18:01:26 Sessions 14 Manual Loads 0 Difficulty Rogue Special Mode None Game No. 13 Rogue 13 Adventurer 0 Explorer 0 Win Type - Total 0 Types 0/0/0/0/0/0/0/0/0 Lore% 5 Gallery% 9 Achievement% 7 Wizard Run 0 Options --------- Layout 2 ASCII 1 Keyboard 1 Movement Vi Keybinds 0 Fullscreen 2 Font 40/SmallcapsGlow Map View 50x44 Zoom Use 0% Tactical HUD 1 Map Filters NONE Filters NONE Steam 0 RUN: 74a04373-e461-4692-b940-6de4f996f3a1